[Event "WJCC U20 Open 2019"]
[Site "New Delhi"]
[Date "2019.10.24"]
[Round "10.45"]
[White "Sivathanujan, S."]
[Black "Dahanayake, Isara Banidu"]
[Result "1/2-1/2"]
[ECO "B50"]
[WhiteElo "1766"]
[BlackElo "1771"]
[Annotator "NA RC"]
[PlyCount "57"]
[EventDate "2019.10.15"]
[EventType "swiss"]
[EventCountry "IND"]
[SourceTitle "playchess.com"]
[Source "ChessBase"]
[SourceQuality "1"]
[TimeControl "40/5400+30:1800+30"]

1. e4 {[%emt 0:00:00]} c5 {[%emt 0:00:00]} 2. Nf3 {[%emt 0:00:00]} d6 {[%emt 0:00:00]} 3. c3 {[%emt 0:00:00]} Nf6 {[%emt 0:00:36]} 4. Bc4 {[%emt 0:00:01]} Nc6 {[%emt 0:00:30]} 5. d3 {[%emt 0:00:26]} g6 {[%emt 0:00:16]} 6. O-O {[%emt 0:01:21]} Bg7 {[%emt 0:00:42]} 7. Bb3 {[%emt 0:02:14]} O-O {[%emt 0:00:20]} 8. h3 {[%emt 0:00:16]} e5 {[%emt 0:01:32]} 9. a4 {[%emt 0:05:36]} h6 {[%emt 0:04:55]} 10. Nbd2 {[%emt 0:05:12]} d5 {[%emt 0:08:32]} 11. Re1 {[%emt 0:06:11]} b6 {[%emt 0:10:21]} 12. Nh2 {[%emt 0:17:55]} Be6 {[%emt 0:12:04]} 13. Ng4 {[%emt 0:05:11]} Nxg4 {[%emt 0:07:16]} 14. hxg4 {[%emt 0:00:07]} Qd7 {[%emt 0:02:19]} 15. f3 {[%emt 0:01:57]} Rad8 {[%emt 0:08:09]} 16. Qe2 {[%emt 0:02:02]} Kh7 {[%emt 0:14:25]} 17. Nf1 {[%emt 0:03:12]} f5 {[%emt 0:07:09]} 18. gxf5 {[%emt 0:00:33]} gxf5 {[%emt 0:00:19]} 19. exf5 {[%emt 0:00:44]} Bxf5 {[%emt 0:04:39]} 20. Ng3 {[%emt 0:00:48]} Bg6 {[%emt 0:01:23]} 21. Bc2 {[%emt 0:01:09]} Kh8 {[%emt 0:01:13]} 22. Kf2 {[%emt 0:00:37]} Qg4 {[%emt 0:09:20]} 23. Rh1 {[%emt 0:02:25]} Kh7 {[%emt 0:01:03]} 24. Bd2 {[%emt 0:01:11]} Rde8 {[%emt 0:01:05]} 25. Rh3 {[%emt 0:01:50]} e4 {[%emt 0:00:47]} 26. dxe4 {[%emt 0:25:51]} dxe4 {[%emt 0:00:28]} 27. Nxe4 {[%emt 0:07:35]} Bxe4 {[%emt 0:00:30]} 28. Kg1 {[%emt 0:00:08]} Bxc2 {[%emt 0:00:41]} 29. Qe4+ {[%emt 0:00:44] Re7 Qxe7 Qxh3 Qxf8 Qxg2+ Kxg2 Bxf8 Re1 Bxa4 Re8 Bg7 Rc8} 1/2-1/2

[Event "WJCC U20 Open 2019"]
[Site "New Delhi"]
[Date "2019.10.25"]
[Round "11.4"]
[White "Kuybokarov, Temur"]
[Black "Wang, Shixu B"]
[Result "1/2-1/2"]
[ECO "D37"]
[WhiteElo "2501"]
[BlackElo "2370"]
[Annotator "ChessBase"]
[PlyCount "192"]
[EventDate "2019.10.15"]
[EventType "swiss"]
[EventCountry "IND"]
[SourceTitle "playchess.com"]
[Source "ChessBase"]
[SourceQuality "1"]
[TimeControl "40/5400+30:1800+30"]

1. d4 {[%emt 0:00:00]} Nf6 {[%emt 0:00:00]} 2. Nf3 {[%emt 0:00:00]} d5 {[%emt 0:00:19]} 3. c4 {[%emt 0:00:10]} e6 {[%emt 0:00:04]} 4. Nc3 {[%emt 0:00:15]} Be7 {[%emt 0:00:15]} 5. Bf4 {[%emt 0:00:36]} O-O {[%emt 0:00:06]} 6. e3 {[%emt 0:00:28]} b6 {[%emt 0:00:21]} 7. Be2 {[%emt 0:00:22]} Bb7 {[%emt 0:00:40]} 8. O-O {[%emt 0:02:18]} Nbd7 {[%emt 0:00:27]} 9. cxd5 {[%emt 0:14:30]} Nxd5 {[%emt 0:00:08]} 10. Nxd5 {[%emt 0:01:58]} exd5 {[%emt 0:00:11]} 11. Rc1 {[%emt 0:08:10]} c5 {[%emt 0:00:22]} 12. b3 {[%emt 0:00:03]} Rc8 {[%emt 0:06:21]} 13. Bd3 {[%emt 0:06:37]} g6 {[%emt 0:17:22]} 14. h3 {[%emt 0:07:45]} Bf6 {[%emt 0:00:53]} 15. Qe2 {[%emt 0:02:38]} Re8 {[%emt 0:17:14]} 16. Ba6 {[%emt 0:03:52]} Bxa6 {[%emt 0:00:18]} 17. Qxa6 {[%emt 0:00:06]} Qe7 {[%emt 0:05:08]} 18. Rfd1 {[%emt 0:06:37]} Qe6 {[%emt 0:02:02]} 19. Qxa7 {[%emt 0:02:06]} Ra8 {[%emt 0:02:52]} 20. Qb7 {[%emt 0:01:16]} Rxa2 {[%emt 0:00:36]} 21. dxc5 {[%emt 0:04:11]} Nxc5 {[%emt 0:00:13]} 22. Qxd5 {[%emt 0:00:10]} Rb2 {[%emt 0:01:42]} 23. Qxe6 {[%emt 0:06:02]} Rxe6 {[%emt 0:02:38]} 24. Nd4 {[%emt 0:07:07]} Re8 {[%emt 0:00:11]} 25. Nb5 {[%emt 0:01:37]} Be5 {[%emt 0:09:45]} 26. Nc7 {[%emt 0:04:47]} Bxc7 {[%emt 0:03:30]} 27. Bxc7 {[%emt 0:00:05]} Nxb3 {[%emt 0:05:36]} 28. Rb1 {[%emt 0:01:17]} Rxb1 {[%emt 0:00:26]} 29. Rxb1 {[%emt 0:00:05]} Nd2 {[%emt 0:00:29]} 30. Rxb6 {[%emt 0:02:20]} Rc8 {[%emt 0:00:06]} 31. Rb7 {[%emt 0:01:04]} Ne4 {[%emt 0:02:51]} 32. f3 {[%emt 0:01:23]} Nc5 {[%emt 0:01:39]} 33. Ra7 {[%emt 0:00:06]} Re8 {[%emt 0:01:15]} 34. e4 {[%emt 0:00:24]} Kg7 {[%emt 0:00:59]} 35. Ra5 {[%emt 0:01:42]} Nd3 {[%emt 0:01:44]} 36. Rd5 {[%emt 0:01:57]} Rc8 {[%emt 0:00:16]} 37. Bd6 {[%emt 0:00:36]} Rc1+ {[%emt 0:00:41]} 38. Kh2 {[%emt 0:00:07]} Rc3 {[%emt 0:00:30]} 39. Kg3 {[%emt 0:06:33]} Kf6 {[%emt 0:01:04]} 40. Bf8 {[%emt 0:06:08]} Rc8 {[%emt 0:11:26]} 41. Rd6+ {[%emt 0:32:25]} Ke5 {[%emt 0:30:15]} 42. Rd5+ {[%emt 0:00:00]} Kf6 {[%emt 0:00:00]} 43. Rd6+ {[%emt 0:00:00]} Ke5 {[%emt 0:00:00]} 44. Be7 {[%emt 0:00:00]} Rc7 {[%emt 0:00:00]} 45. Rd5+ {[%emt 0:00:00]} Ke6 {[%emt 0:00:00]} 46. Bd6 {[%emt 0:00:00]} Rc3 {[%emt 0:00:00]} 47. Bb8 {[%emt 0:00:00]} Rb3 {[%emt 0:00:00]} 48. Bc7 {[%emt 0:00:00]} h5 {[%emt 0:00:00]} 49. h4 {[%emt 0:00:00]} Rc3 {[%emt 0:00:00]} 50. Bb8 {[%emt 0:00:00]} Rb3 {[%emt 0:00:00]} 51. Ba7 {[%emt 0:00:00]} f5 {[%emt 0:00:00]} 52. Rd8 {[%emt 0:00:00]} Ke7 {[%emt 0:00:00]} 53. Rd4 {[%emt 0:00:00]} f4+ {[%emt 0:00:00]} 54. Kh2 {[%emt 0:00:00]} Ne5 {[%emt 0:00:00]} 55. Bc5+ {[%emt 0:00:00]} Kf7 {[%emt 0:00:00]} 56. Rd5 {[%emt 0:00:00]} Nd3 {[%emt 0:00:00]} 57. Bd4 {[%emt 0:00:00]} Ke7 {[%emt 0:00:00]} 58. e5 {[%emt 0:00:00]} Nc1 {[%emt 0:02:21]} 59. Rd6 {[%emt 0:01:26]} Ne2 {[%emt 0:00:06]} 60. Bf2 {[%emt 0:00:50]} Rb5 {[%emt 0:01:35]} 61. Rxg6 {[%emt 0:00:41]} Rxe5 {[%emt 0:00:06]} 62. Rc6 {[%emt 0:01:52]} Kd7 {[%emt 0:01:18]} 63. Rh6 {[%emt 0:00:42]} Rd5 {[%emt 0:01:25]} 64. Ba7 {[%emt 0:01:08]} Rb5 {[%emt 0:02:01]} 65. Rh8 {[%emt 0:00:41]} Ke7 {[%emt 0:02:56]} 66. Bb8 {[%emt 0:00:29]} Kf7 {[%emt 0:00:36]} 67. Bc7 {[%emt 0:00:11]} Rc5 {[%emt 0:01:07]} 68. Bd6 {[%emt 0:01:13]} Rd5 {[%emt 0:01:26]} 69. Rf8+ {[%emt 0:00:40]} Kg6 {[%emt 0:00:49]} 70. Bb8 {[%emt 0:00:48]} Rd4 {[%emt 0:02:07]} 71. Be5 {[%emt 0:00:45]} Rc4 {[%emt 0:01:05]} 72. Rf6+ {[%emt 0:00:45]} Kh7 {[%emt 0:00:04]} 73. Re6 {[%emt 0:00:28]} Ng3 {[%emt 0:00:51]} 74. Kh3 {[%emt 0:01:56]} Ne2 {[%emt 0:01:33]} 75. Kh2 {[%emt 0:01:09]} Rc2 {[%emt 0:00:31]} 76. Bd6 {[%emt 0:00:56]} Nd4 {[%emt 0:00:36]} 77. Re7+ {[%emt 0:00:10]} Kg6 {[%emt 0:00:35]} 78. Bxf4 {[%emt 0:00:15]} Nxf3+ {[%emt 0:00:08]} 79. Kg3 {[%emt 0:00:16]} Nd4 {[%emt 0:00:44]} 80. Kh3 {[%emt 0:00:05]} Nf5 {[%emt 0:00:54]} 81. Re6+ {[%emt 0:00:06]} Kf7 {[%emt 0:00:10]} 82. Ra6 {[%emt 0:00:05]} Rc3+ {[%emt 0:01:06]} 83. g3 Rc5 {[%emt 0:00:17]} 84. Kg2 {[%emt 0:00:20]} Rc2+ {[%emt 0:00:25]} 85. Kf3 {[%emt 0:00:06]} Rc3+ {[%emt 0:00:10]} 86. Kg2 {[%emt 0:01:11]} Rc2+ {[%emt 0:00:02]} 87. Kh3 {[%emt 0:00:05]} Rc5 88. Ra3 {[%emt 0:01:14]} Rc2 {[%emt 0:01:25]} 89. g4 {[%emt 0:00:23]} hxg4+ {[%emt 0:00:15]} 90. Kxg4 {[%emt 0:00:06]} Ng7 {[%emt 0:00:57]} 91. h5 {[%emt 0:00:07]} Ne6 {[%emt 0:00:30]} 92. Be5 {[%emt 0:00:15]} Rg2+ {[%emt 0:00:53]} 93. Kh4 {[%emt 0:00:13]} Re2 {[%emt 0:00:51]} 94. Ra7+ {[%emt 0:00:16]} Kg8 {[%emt 0:00:07]} 95. Ba1 {[%emt 0:00:36]} Re4+ {[%emt 0:00:46]} 96. Kg3 {[%emt 0:00:09]} Nd4 {[%emt 0:00:29]} 1/2-1/2

[Event "WJCC U20 Open 2019"]
[Site "New Delhi"]
[Date "2019.10.25"]
[Round "11.27"]
[White "Aronyak Ghosh"]
[Black "Doluweera, Minul Sanjula"]
[Result "1/2-1/2"]
[ECO "A13"]
[WhiteElo "2380"]
[BlackElo "2191"]
[Annotator "RC"]
[PlyCount "94"]
[EventDate "2019.10.15"]
[EventType "swiss"]
[EventCountry "IND"]
[SourceTitle "playchess.com"]
[Source "ChessBase"]
[SourceQuality "1"]
[TimeControl "40/5400+30:1800+30"]

1. c4 e6 2. Nc3 {[%emt 0:00:00]} d5 {[%emt 0:01:02]} 3. e3 Nf6 {[%emt 0:00:30]} 4. Nf3 {[%emt 0:00:48]} c5 {[%emt 0:02:39]} 5. cxd5 {[%emt 0:00:14]} exd5 {[%emt 0:00:02]} 6. d4 {[%emt 0:00:09]} cxd4 {[%emt 0:00:09]} 7. Nxd4 {[%emt 0:00:52]} a6 {[%emt 0:00:15]} 8. Be2 {[%emt 0:02:55]} Nc6 {[%emt 0:00:23]} 9. O-O {[%emt 0:00:46]} Bc5 {[%emt 0:00:34]} 10. Nxc6 {[%emt 0:02:45]} bxc6 {[%emt 0:00:48]} 11. Qc2 {[%emt 0:00:05]} Ba7 {[%emt 0:05:43]} 12. Rd1 {[%emt 0:06:16]} O-O {[%emt 0:02:28]} 13. b3 {[%emt 0:06:25]} Qd6 {[%emt 0:02:05]} 14. Ne4 {[%emt 0:05:27]} Nxe4 {[%emt 0:05:33]} 15. Qxe4 {[%emt 0:00:07]} Qf6 {[%emt 0:00:16]} 16. Qb1 {[%emt 0:00:37]} d4 {[%emt 0:00:07]} 17. Bb2 {[%emt 0:03:00]} c5 {[%emt 0:00:52]} 18. Qe4 {[%emt 0:12:13]} Bf5 {[%emt 0:11:56]} 19. Qf3 {[%emt 0:00:07]} Qe5 {[%emt 0:01:32]} 20. Bd3 {[%emt 0:04:16]} Bxd3 {[%emt 0:18:12]} 21. Rxd3 {[%emt 0:00:38]} Rad8 {[%emt 0:00:48]} 22. Rad1 {[%emt 0:03:04]} Rd6 {[%emt 0:06:20]} 23. Qb7 {[%emt 0:03:53]} Bb6 {[%emt 0:09:14]} 24. g3 {[%emt 0:04:56]} Rfd8 {[%emt 0:01:37]} 25. Qxa6 {[%emt 0:03:53]} Qe4 {[%emt 0:04:27]} 26. Qc4 {[%emt 0:05:47]} h5 {[%emt 0:00:06]} 27. h4 {[%emt 0:03:09]} Qf5 {[%emt 0:12:29]} 28. exd4 {[%emt 0:02:52]} cxd4 {[%emt 0:00:01]} 29. Bxd4 {[%emt 0:01:50]} Qe4 {[%emt 0:04:01]} 30. Bxb6 {[%emt 0:00:31]} Qxc4 {[%emt 0:00:10]} 31. bxc4 {[%emt 0:01:13]} Rxd3 {[%emt 0:00:27]} 32. Rxd3 {[%emt 0:00:03]} Rxd3 {[%emt 0:00:02]} 33. a4 {[%emt 0:00:00]} Kf8 {[%emt 0:02:20]} 34. c5 {[%emt 0:01:40]} Rc3 {[%emt 0:01:07]} 35. a5 {[%emt 0:00:07]} Ke8 {[%emt 0:00:12]} 36. a6 {[%emt 0:00:05]} Kd7 {[%emt 0:00:25]} 37. a7 {[%emt 0:00:19]} Ra3 {[%emt 0:00:04]} 38. Kf1 {[%emt 0:01:32]} Ra2 {[%emt 0:01:21]} 39. Ke1 {[%emt 0:00:05]} Kc6 {[%emt 0:00:30]} 40. Kd1 {[%emt 0:00:09]} Kb7 {[%emt 0:01:43]} 41. Kc1 {[%emt 0:30:05]} Kc6 {[%emt 0:30:13]} 42. Kb1 {[%emt 0:00:03]} Ra6 {[%emt 0:00:00]} 43. Kb2 {[%emt 0:00:00]} g6 {[%emt 0:00:00]} 44. Kc2 {[%emt 0:00:00]} f5 {[%emt 0:00:00]} 45. Kd3 {[%emt 0:00:00]} Ra4 {[%emt 0:00:00]} 46. Kc3 {[%emt 0:00:00]} Kb5 {[%emt 0:00:00]} 47. Kb3 {[%emt 0:00:00]} Ra1 {[%emt 0:00:00]} 1/2-1/2